fUST/lending_fUST_20250316
["ID","MTS","AMOUNT","RATE_DAILY","PERIOD"]
[356216201,1742081438825,-500.0,8.493e-05,2]
[356216202,1742081438834,-500.0,8.493e-05,2]
[356216203,1742081438844,-500.0,8.493e-05,2]
[356216204,1742081438853,-500.0,8.493e-05,2]
[356216205,1742081438863,-573.48,8.493e-05,2]
[356216206,1742081438874,-500.0,8.493e-05,2]
[356216207,1742081438885,-500.0,8.493e-05,2]
[356216208,1742081438895,-688.59,8.493e-05,2]
[356216209,1742081438905,-733.94,8.493e-05,2]
[356216210,1742081438915,-500.0,8.493e-05,2]
[356216211,1742081438924,-500.0,8.493e-05,2]
[356216212,1742081438934,-500.0,8.493e-05,2]
[356216213,1742081438943,-500.0,8.493e-05,2]
[356216214,1742081438954,-500.0,8.493e-05,2]
[356216215,1742081438964,-542.96,8.493e-05,2]
[356216216,1742081438974,-500.0,8.493e-05,2]
[356216217,1742081438983,-500.0,8.493e-05,2]
[356216218,1742081438993,-500.0,8.493e-05,2]
[356216219,1742081439003,-261.09925806,8.493e-05,2]
[356216220,1742081439011,-500.0,8.493e-05,2]
[356216221,1742081439021,-500.0,8.493e-05,2]
[356216222,1742081439032,-500.0,8.493e-05,2]
[356216223,1742081439042,-500.0,8.493e-05,2]
[356216224,1742081439051,-500.0,8.493e-05,2]
[356216225,1742081439061,-500.0,8.493e-05,2]
[356216226,1742081439071,-500.0,8.493e-05,2]
[356216227,1742081439080,-500.0,8.493e-05,2]
[356216228,1742081439091,-686.96,8.493e-05,2]
[356216229,1742081439100,-500.0,8.493e-05,2]
[356216230,1742081439110,-500.0,8.493e-05,2]
[356216231,1742081439120,-500.0,8.493e-05,2]
[356216232,1742081439130,-500.0,8.493e-05,2]
[356216233,1742081439139,-593.4,8.493e-05,2]
[356216234,1742081439149,-500.0,8.493e-05,2]
[356216235,1742081439159,-500.0,8.493e-05,2]
[356216236,1742081439170,-603.62,8.493e-05,2]
[356216237,1742081439179,-500.0,8.493e-05,2]
[356216238,1742081439188,-500.0,8.493e-05,2]
[356216239,1742081439199,-500.0,8.493e-05,2]
[356216240,1742081439208,-500.0,8.493e-05,2]
[356216241,1742081439218,-500.0,8.493e-05,2]
[356216242,1742081439228,-500.0,8.493e-05,2]
[356216243,1742081439238,-500.0,8.493e-05,2]
[356216244,1742081439247,-500.0,8.493e-05,2]
[356216245,1742081439257,-500.0,8.493e-05,2]
[356216246,1742081439267,-563.24,8.493e-05,2]
[356216247,1742081439276,-500.0,8.493e-05,2]
[356216248,1742081439286,-547.3,8.493e-05,2]
[356216249,1742081439296,-500.0,8.493e-05,2]
[356216250,1742081439305,-575.747745,8.493e-05,2]
[356216251,1742081439316,-500.0,8.493e-05,2]
[356216252,1742081439326,-500.0,8.493e-05,2]
[356216253,1742081439335,-500.0,8.493e-05,2]
[356216254,1742081439345,-502.20490292,8.493e-05,2]
[356216255,1742081439354,-570.23,8.493e-05,2]
[356216256,1742081439369,-500.0,8.493e-05,2]
[356216257,1742081439378,-500.0,8.493e-05,2]
[356216258,1742081439388,-500.0,8.493e-05,2]
[356216259,1742081439398,-500.0,8.493e-05,2]
[356216260,1742081439407,-500.0,8.493e-05,2]
[356216261,1742081439416,-500.0,8.493e-05,2]
[356216262,1742081439426,-500.0,8.493e-05,2]
[356216263,1742081439435,-500.0,8.493e-05,2]
[356216264,1742081439445,-62.01286147,8.493e-05,2]
[356216281,1742081441112,-500.0,8.219e-05,2]
[356216283,1742081441122,-228.1,8.219e-05,2]
[356216284,1742081441132,-437.98713853,8.493e-05,2]
[356216285,1742081441141,-500.0,8.493e-05,2]
[356216286,1742081441150,-500.0,8.493e-05,2]
[356216287,1742081441160,-500.0,8.493e-05,2]
[356216288,1742081441169,-500.0,8.493e-05,2]
[356216289,1742081441178,-500.0,8.493e-05,2]
[356216290,1742081441188,-500.0,8.493e-05,2]
[356216291,1742081441198,-500.0,8.493e-05,2]
[356216292,1742081441207,-500.0,8.493e-05,2]
[356216293,1742081441216,-500.0,8.493e-05,2]
[356216294,1742081441226,-500.0,8.493e-05,2]
[356216295,1742081441235,-500.0,8.493e-05,2]
[356216296,1742081441246,-500.0,8.493e-05,2]
[356216297,1742081441255,-500.0,8.493e-05,2]
[356216298,1742081441265,-500.0,8.493e-05,2]
[356216299,1742081441274,-500.0,8.493e-05,2]
[356216300,1742081441284,-519.62,8.493e-05,2]
[356216301,1742081441294,-500.0,8.493e-05,2]
[356216302,1742081441304,-500.0,8.493e-05,2]
[356216303,1742081441313,-500.0,8.493e-05,2]
[356216304,1742081441323,-500.0,8.493e-05,2]
[356216305,1742081441334,-500.0,8.493e-05,2]
[356216306,1742081441344,-500.0,8.493e-05,2]
[356216307,1742081441353,-315.36,8.493e-05,2]
[356216308,1742081441363,-500.0,8.493e-05,2]
[356216309,1742081441373,-298.79,8.493e-05,2]
[356216310,1742081441383,-500.0,8.493e-05,2]
[356216311,1742081441392,-500.0,8.493e-05,2]
[356216312,1742081441402,-500.0,8.493e-05,2]
[356216313,1742081441411,-500.0,8.493e-05,2]
[356216314,1742081441420,-500.0,8.493e-05,2]
[356216315,1742081441430,-1259.24,8.493e-05,2]
[356216316,1742081441439,-500.0,8.493e-05,2]
[356216317,1742081441449,-2810.2,8.493e-05,2]
[356216318,1742081441458,-500.0,8.493e-05,2]
[356216319,1742081441467,-299.59,8.493e-05,2]
[356216320,1742081441476,-600.5,8.493e-05,2]
[356216321,1742081441486,-500.0,8.493e-05,2]
[356216322,1742081441495,-631.42,8.493e-05,2]
[356216323,1742081441505,-500.0,8.493e-05,2]
[356216324,1742081441515,-243.51,8.493e-05,2]
[356216325,1742081441524,-500.0,8.493e-05,2]
[356216326,1742081441533,-500.0,8.493e-05,2]
[356216327,1742081441543,-500.0,8.493e-05,2]
[356216328,1742081441553,-500.0,8.493e-05,2]
[356216329,1742081441563,-695.65,8.493e-05,2]
[356216330,1742081441573,-500.0,8.493e-05,2]
[356216331,1742081441583,-371.58,8.493e-05,2]
[356216332,1742081441593,-500.0,8.493e-05,2]
[356216333,1742081441602,-154.23,8.493e-05,2]
[356216334,1742081441612,-581.05,8.493e-05,2]
[356216335,1742081441622,-500.0,8.493e-05,2]
[356216336,1742081441631,-500.0,8.493e-05,2]
[356216337,1742081441641,-500.0,8.493e-05,2]
[356216338,1742081441650,-743.01,8.493e-05,2]
[356216339,1742081441660,-761.35,8.493e-05,2]
[356216340,1742081441670,-2118.59,8.493e-05,2]
[356216341,1742081441680,-1438.42,8.493e-05,2]
[356216342,1742081441689,-4430.57,8.493e-05,2]
[356216343,1742081441699,-1587.1,8.493e-05,2]
[356216344,1742081441709,-500.0,8.493e-05,2]
[356216345,1742081441719,-500.0,8.493e-05,2]
[356216346,1742081441731,-884.96,8.493e-05,2]
[356216347,1742081441741,-500.0,8.493e-05,2]
[356216348,1742081441751,-500.0,8.493e-05,2]
[356216349,1742081441761,-613.12,8.493e-05,2]
[356216350,1742081441771,-500.0,8.493e-05,2]
[356216351,1742081441782,-500.0,8.493e-05,2]
[356216352,1742081441791,-520.01,8.493e-05,2]
[356216353,1742081441802,-500.0,8.493e-05,2]
[356216354,1742081441812,-500.0,8.493e-05,2]
[356216355,1742081441823,-1782.38,8.493e-05,2]
[356216356,1742081441832,-500.0,8.493e-05,2]
[356216357,1742081441843,-500.0,8.493e-05,2]
[356216358,1742081441852,-500.0,8.493e-05,2]
[356216359,1742081441862,-506.49,8.493e-05,2]
[356216360,1742081441872,-500.0,8.493e-05,2]
[356216361,1742081441882,-500.0,8.493e-05,2]
[356216362,1742081441892,-1182.97,8.493e-05,2]
[356216363,1742081441902,-500.0,8.493e-05,2]
[356216364,1742081441911,-527.72,8.493e-05,2]
[356216365,1742081441921,-500.0,8.493e-05,2]
[356216366,1742081441931,-500.0,8.493e-05,2]
[356216367,1742081441940,-500.0,8.493e-05,2]
[356216368,1742081441950,-1814.47,8.493e-05,2]
[356216369,1742081441959,-597.04,8.493e-05,2]
[356216370,1742081441969,-3792.26,8.493e-05,2]
[356216371,1742081441983,-51187.3,8.493e-05,2]
[356216372,1742081441993,-500.0,8.493e-05,2]
[356216373,1742081442003,-500.0,8.493e-05,2]
[356216374,1742081442013,-599.54,8.493e-05,2]
[356216375,1742081442022,-500.0,8.493e-05,2]
[356216376,1742081442032,-500.0,8.493e-05,2]
[356216377,1742081442043,-500.0,8.493e-05,2]
[356216378,1742081442052,-500.0,8.493e-05,2]
[356216379,1742081442062,-500.0,8.493e-05,2]
[356216380,1742081442072,-1644.21,8.493e-05,2]
[356216381,1742081442082,-529.7,8.493e-05,2]
[356216382,1742081442092,-500.0,8.493e-05,2]
[356216383,1742081442105,-500.0,8.493e-05,2]
[356216384,1742081442115,-500.0,8.493e-05,2]
[356216385,1742081442125,-500.0,8.493e-05,2]
[356216386,1742081442134,-528.4,8.493e-05,2]
[356216387,1742081442144,-500.0,8.493e-05,2]
[356216388,1742081442153,-500.0,8.493e-05,2]
[356216389,1742081442163,-3594.72,8.493e-05,2]
[356216390,1742081442173,-500.0,8.493e-05,2]
[356216391,1742081442182,-860.21,8.493e-05,2]
[356216392,1742081442192,-500.0,8.493e-05,2]
[356216393,1742081442201,-500.0,8.493e-05,2]
[356216394,1742081442211,-869.86,8.493e-05,2]
[356216395,1742081442220,-500.0,8.493e-05,2]
[356216396,1742081442230,-985.32,8.493e-05,2]
[356216397,1742081442239,-500.0,8.493e-05,2]
[356216398,1742081442249,-500.0,8.493e-05,2]
[356216399,1742081442259,-3834.22,8.493e-05,2]
[356216400,1742081442268,-500.0,8.493e-05,2]
[356216401,1742081442278,-500.0,8.493e-05,2]
[356216402,1742081442288,-695.49,8.493e-05,2]
[356216403,1742081442297,-841.53,8.493e-05,2]
[356216404,1742081442307,-1665.03,8.493e-05,2]
[356216405,1742081442316,-500.0,8.493e-05,2]
[356216406,1742081442327,-301.122985,8.5e-05,2]
[356216407,1742081442337,-155.55286,8.5e-05,2]
[356216408,1742081442346,-1119.9294358,8.5e-05,2]
[356216409,1742081442356,-186.9825615,8.63e-05,2]
[356216410,1742081442366,-186.9825615,8.63e-05,2]
[356216411,1742081442376,-834.96754831,8.634e-05,2]
[356216412,1742081442386,-151.0,8.766e-05,2]
[356216413,1742081442396,-500.0,8.767e-05,2]
[356216414,1742081442406,-550.86,8.767e-05,2]
[356216415,1742081442416,-421.8,8.767e-05,2]
[356216416,1742081442426,-583.42,8.767e-05,2]
[356216417,1742081442435,-500.0,8.767e-05,2]
[356216418,1742081442445,-569.83,8.767e-05,2]
[356216419,1742081442455,-500.0,8.767e-05,2]
[356216420,1742081442464,-500.0,8.767e-05,2]
[356216421,1742081442474,-500.0,8.767e-05,2]
[356216422,1742081442484,-596.1,8.767e-05,2]
[356216423,1742081442493,-500.0,8.767e-05,2]
[356216424,1742081442503,-688.59,8.767e-05,2]
[356216425,1742081442512,-733.94,8.767e-05,2]
[356216426,1742081442522,-500.0,8.767e-05,2]
[356216427,1742081442532,-335.18,8.767e-05,2]
[356216428,1742081442542,-500.0,8.767e-05,2]
[356216429,1742081442551,-500.0,8.767e-05,2]
[356216430,1742081442561,-500.0,8.767e-05,2]
[356216431,1742081442571,-500.0,8.767e-05,2]
[356216432,1742081442581,-500.0,8.767e-05,2]
[356216433,1742081442592,-686.96,8.767e-05,2]
[356216434,1742081442602,-500.0,8.767e-05,2]
[356216435,1742081442611,-500.0,8.767e-05,2]
[356216436,1742081442621,-500.0,8.767e-05,2]
[356216437,1742081442631,-273.9,8.767e-05,2]
[356216438,1742081442641,-279.62,8.767e-05,2]
[356216439,1742081442651,-480.6,8.767e-05,2]
[356216440,1742081442660,-500.0,8.767e-05,2]
[356216441,1742081442670,-500.0,8.767e-05,2]
[356216442,1742081442679,-500.0,8.767e-05,2]
[356216443,1742081442689,-547.3,8.767e-05,2]
[356216444,1742081442699,-500.0,8.767e-05,2]
[356216445,1742081442709,-500.0,8.767e-05,2]
[356216446,1742081442718,-500.0,8.767e-05,2]
[356216447,1742081442730,-570.23,8.767e-05,2]
[356216448,1742081442741,-273.78,8.767e-05,2]
[356216449,1742081442751,-428.54,8.767e-05,2]
[356216450,1742081442761,-500.0,8.767e-05,2]
[356216451,1742081442771,-500.0,8.767e-05,2]
[356216452,1742081442781,-500.0,8.767e-05,2]
[356216453,1742081442790,-500.0,8.767e-05,2]
[356216454,1742081442800,-500.0,8.767e-05,2]
[356216455,1742081442811,-500.0,8.767e-05,2]
[356216456,1742081442821,-500.0,8.767e-05,2]
[356216457,1742081442831,-535.14,8.767e-05,2]
[356216458,1742081442841,-500.0,8.767e-05,2]
[356216459,1742081442850,-500.0,8.767e-05,2]
[356216460,1742081442860,-500.0,8.767e-05,2]
[356216461,1742081442870,-500.0,8.767e-05,2]
[356216462,1742081442879,-500.0,8.767e-05,2]
[356216463,1742081442889,-500.0,8.767e-05,2]
[356216464,1742081442899,-156.08,8.767e-05,2]
[356216465,1742081442910,-1259.24,8.767e-05,2]
[356216466,1742081442920,-500.0,8.767e-05,2]
[356216467,1742081442930,-2810.2,8.767e-05,2]
[356216468,1742081442940,-500.0,8.767e-05,2]
[356216469,1742081442951,-600.5,8.767e-05,2]
[356216470,1742081442961,-500.0,8.767e-05,2]
[356216471,1742081442971,-288.08,8.767e-05,2]
[356216472,1742081442981,-416.54,8.767e-05,2]
[356216473,1742081442991,-695.65,8.767e-05,2]
[356216474,1742081443002,-500.0,8.767e-05,2]
[356216475,1742081443012,-500.0,8.767e-05,2]
[356216476,1742081443022,-500.0,8.767e-05,2]
[356216477,1742081443031,-500.0,8.767e-05,2]
[356216478,1742081443042,-500.0,8.767e-05,2]
[356216479,1742081443052,-743.01,8.767e-05,2]
[356216480,1742081443062,-761.35,8.767e-05,2]
[356216481,1742081443072,-2118.59,8.767e-05,2]
[356216482,1742081443083,-1438.42,8.767e-05,2]
[356216483,1742081443093,-4430.57,8.767e-05,2]
[356216484,1742081443103,-1587.1,8.767e-05,2]
[356216485,1742081443112,-500.0,8.767e-05,2]
[356216487,1742081443122,-500.0,8.767e-05,2]
[356216489,1742081443132,-884.96,8.767e-05,2]
[356216491,1742081443142,-500.0,8.767e-05,2]
[356216493,1742081443151,-500.0,8.767e-05,2]
[356216495,1742081443161,-520.01,8.767e-05,2]
[356216497,1742081443171,-500.0,8.767e-05,2]
[356216498,1742081443182,-1782.38,8.767e-05,2]
[356216499,1742081443192,-500.0,8.767e-05,2]
[356216500,1742081443202,-500.0,8.767e-05,2]
[356216501,1742081443212,-500.0,8.767e-05,2]
[356216502,1742081443223,-500.0,8.767e-05,2]
[356216503,1742081443233,-309.24,8.767e-05,2]
[356216504,1742081443244,-1182.97,8.767e-05,2]
[356216505,1742081443254,-500.0,8.767e-05,2]
[356216506,1742081443264,-500.0,8.767e-05,2]
[356216507,1742081443275,-500.0,8.767e-05,2]
[356216508,1742081443285,-1814.47,8.767e-05,2]
[356216509,1742081443295,-500.0,8.767e-05,2]
[356216510,1742081443306,-597.04,8.767e-05,2]
[356216511,1742081443318,-500.0,8.767e-05,2]
[356216512,1742081443328,-3792.26,8.767e-05,2]
[356216513,1742081443341,-220.6165466,8.767e-05,2]
[356216514,1742081443358,-2433.58273462,8.767e-05,2]
[356216589,1742082631939,-702.34826922,8.2e-05,2]
[356216591,1742082631949,-583.44128307,8.218e-05,2]
[356216593,1742082631958,-176.11301555,8.219e-05,2]
[356216595,1742082631967,-500.0,8.219e-05,2]
[356216597,1742082631977,-536.57,8.219e-05,2]
[356216599,1742082631986,-286.12,8.219e-05,2]
[356216601,1742082631995,-500.0,8.219e-05,2]
[356216602,1742082632005,-500.0,8.219e-05,2]
[356216603,1742082632014,-500.0,8.219e-05,2]
[356216604,1742082632024,-500.0,8.219e-05,2]
[356216605,1742082632033,-500.0,8.219e-05,2]
[356216606,1742082632042,-500.0,8.219e-05,2]
[356216608,1742082632052,-500.0,8.219e-05,2]
[356216610,1742082632061,-500.0,8.219e-05,2]
[356216612,1742082632071,-500.0,8.219e-05,2]
[356216614,1742082632080,-500.0,8.219e-05,2]
[356216616,1742082632089,-500.0,8.219e-05,2]
[356216618,1742082632099,-500.0,8.219e-05,2]
[356216620,1742082632108,-500.0,8.219e-05,2]
[356216622,1742082632117,-500.0,8.219e-05,2]
[356216624,1742082632126,-500.0,8.219e-05,2]
[356216626,1742082632136,-521.8,8.219e-05,2]
[356216628,1742082632145,-500.0,8.219e-05,2]
[356216630,1742082632154,-500.0,8.219e-05,2]
[356216632,1742082632164,-500.0,8.219e-05,2]
[356216634,1742082632173,-500.0,8.219e-05,2]
[356216636,1742082632182,-500.0,8.219e-05,2]
[356216638,1742082632191,-500.0,8.219e-05,2]
[356216640,1742082632200,-500.0,8.219e-05,2]
[356216642,1742082632210,-500.0,8.219e-05,2]
[356216644,1742082632219,-639.36,8.219e-05,2]
[356216646,1742082632229,-500.0,8.219e-05,2]
[356216648,1742082632238,-500.0,8.219e-05,2]
[356216650,1742082632247,-500.0,8.219e-05,2]
[356216652,1742082632257,-500.0,8.219e-05,2]
[356216654,1742082632266,-500.0,8.219e-05,2]
[356216656,1742082632275,-500.0,8.219e-05,2]
[356216658,1742082632284,-500.0,8.219e-05,2]
[356216660,1742082632294,-578.2,8.219e-05,2]
[356216662,1742082632303,-500.0,8.219e-05,2]
[356216664,1742082632312,-500.0,8.219e-05,2]
[356216666,1742082632324,-500.0,8.219e-05,2]
[356216668,1742082632334,-500.0,8.219e-05,2]
[356216670,1742082632343,-500.0,8.219e-05,2]
[356216672,1742082632352,-500.0,8.219e-05,2]
[356216674,1742082632363,-500.0,8.219e-05,2]
[356216676,1742082632372,-500.0,8.219e-05,2]
[356216678,1742082632382,-500.0,8.219e-05,2]
[356216680,1742082632391,-500.0,8.219e-05,2]
[356216682,1742082632402,-500.0,8.219e-05,2]
[356216684,1742082632411,-500.0,8.219e-05,2]
[356216686,1742082632421,-500.0,8.219e-05,2]
[356216688,1742082632430,-500.0,8.219e-05,2]
[356216690,1742082632440,-561.67,8.219e-05,2]
[356216692,1742082632449,-500.0,8.219e-05,2]
[356216694,1742082632458,-500.0,8.219e-05,2]
[356216696,1742082632467,-500.0,8.219e-05,2]
[356216698,1742082632476,-500.0,8.219e-05,2]
[356216700,1742082632485,-506.25,8.219e-05,2]
[356216702,1742082632495,-500.0,8.219e-05,2]
[356216704,1742082632504,-500.0,8.219e-05,2]
[356216706,1742082632514,-500.0,8.219e-05,2]
[356216708,1742082632523,-500.0,8.219e-05,2]
[356216710,1742082632532,-560.11,8.219e-05,2]
[356216712,1742082632541,-500.0,8.219e-05,2]
[356216714,1742082632550,-500.0,8.219e-05,2]
[356216716,1742082632559,-500.0,8.219e-05,2]
[356216718,1742082632569,-540.36,8.219e-05,2]
[356216720,1742082632582,-500.0,8.219e-05,2]
[356216723,1742082632594,-500.0,8.219e-05,2]
[356216725,1742082632603,-500.0,8.219e-05,2]
[356216727,1742082632613,-500.0,8.219e-05,2]
[356216729,1742082632622,-500.0,8.219e-05,2]
[356216731,1742082632632,-645.03,8.219e-05,2]
[356216733,1742082632641,-500.0,8.219e-05,2]
[356216735,1742082632650,-500.0,8.219e-05,2]
[356216737,1742082632659,-500.0,8.219e-05,2]
[356216739,1742082632668,-500.0,8.219e-05,2]
[356216740,1742082632679,-431.43071181,8.219e-05,2]
[356216743,1742082632688,-500.0,8.219e-05,2]
[356216744,1742082632698,-500.0,8.219e-05,2]
[356216746,1742082632708,-500.0,8.219e-05,2]
[356216747,1742082632717,-500.0,8.219e-05,2]
[356216749,1742082632727,-500.0,8.219e-05,2]
[356216750,1742082632737,-500.0,8.219e-05,2]
[356216751,1742082632746,-500.0,8.219e-05,2]
[356216752,1742082632756,-500.0,8.219e-05,2]
[356216753,1742082632765,-500.0,8.219e-05,2]
[356216754,1742082632775,-500.0,8.219e-05,2]
[356216755,1742082632784,-500.0,8.219e-05,2]
[356216756,1742082632793,-500.0,8.219e-05,2]
[356216757,1742082632803,-500.0,8.219e-05,2]
[356216758,1742082632812,-500.0,8.219e-05,2]
[356216759,1742082632822,-500.0,8.219e-05,2]
[356216760,1742082632832,-500.0,8.219e-05,2]
[356216761,1742082632842,-500.0,8.219e-05,2]
[356216762,1742082632852,-500.0,8.219e-05,2]
[356216763,1742082632862,-553.26,8.219e-05,2]
[356216764,1742082632871,-500.0,8.219e-05,2]
[356216765,1742082632882,-500.0,8.219e-05,2]
[356216766,1742082632892,-500.0,8.219e-05,2]
[356216767,1742082632902,-500.0,8.219e-05,2]
[356216768,1742082632912,-500.0,8.219e-05,2]
[356216769,1742082632922,-500.0,8.219e-05,2]
[356216770,1742082632932,-500.0,8.219e-05,2]
[356216771,1742082632942,-500.0,8.219e-05,2]
[356216772,1742082632951,-500.0,8.219e-05,2]
[356216773,1742082632961,-3871.4,8.219e-05,2]
[356216774,1742082632971,-864.97,8.219e-05,2]
[356216775,1742082632980,-500.0,8.219e-05,2]
[356216776,1742082632990,-839.66,8.219e-05,2]
[356216777,1742082633000,-162.21,8.219e-05,2]
[356216778,1742082633009,-500.0,8.219e-05,2]
[356216779,1742082633019,-500.0,8.219e-05,2]
[356216780,1742082633030,-500.0,8.219e-05,2]
[356216781,1742082633040,-594.04,8.219e-05,2]
[356216782,1742082633051,-500.0,8.219e-05,2]
[356216783,1742082633062,-518.73,8.219e-05,2]
[356216784,1742082633073,-500.0,8.219e-05,2]
[356216785,1742082633083,-586.11,8.219e-05,2]
[356216786,1742082633094,-500.0,8.219e-05,2]
[356216787,1742082633104,-617.3,8.219e-05,2]
[356216788,1742082633114,-500.0,8.219e-05,2]
[356216789,1742082633125,-500.0,8.219e-05,2]
[356216790,1742082633137,-588.17,8.219e-05,2]
[356216791,1742082633148,-562.29,8.219e-05,2]
[356216792,1742082633159,-1188.58,8.219e-05,2]
[356216793,1742082633169,-500.0,8.219e-05,2]
[356216794,1742082633180,-500.0,8.219e-05,2]
[356216795,1742082633191,-500.0,8.219e-05,2]
[356216796,1742082633201,-500.0,8.219e-05,2]
[356216797,1742082633213,-532.62,8.219e-05,2]
[356216798,1742082633223,-500.0,8.219e-05,2]
[356216799,1742082633234,-500.0,8.219e-05,2]
[356216800,1742082633245,-500.0,8.219e-05,2]
[356216801,1742082633255,-2428.55,8.219e-05,2]
[356216802,1742082633265,-608.7,8.219e-05,2]
[356216803,1742082633276,-500.0,8.219e-05,2]
[356216804,1742082633286,-666.19,8.219e-05,2]
[356216805,1742082633296,-500.0,8.219e-05,2]
[356216806,1742082633306,-500.0,8.219e-05,2]
[356216807,1742082633318,-4436.37,8.219e-05,2]
[356216808,1742082633328,-1790.32,8.219e-05,2]
[356216809,1742082633339,-650.14,8.219e-05,2]
[356216810,1742082633349,-1388.71,8.219e-05,2]
[356216811,1742082633359,-500.0,8.219e-05,2]
[356216812,1742082633370,-500.0,8.219e-05,2]
[356216813,1742082633380,-500.0,8.219e-05,2]
[356216814,1742082633390,-500.0,8.219e-05,2]
[356216815,1742082633403,-600.17,8.219e-05,2]
[356216816,1742082633413,-556.77593907,8.219e-05,2]
[356216817,1742082633423,-1601.82,8.219e-05,2]
[356216818,1742082633433,-500.0,8.219e-05,2]
[356216819,1742082633443,-500.0,8.219e-05,2]
[356216820,1742082633453,-901.92,8.219e-05,2]
[356216821,1742082633463,-500.0,8.219e-05,2]
[356216822,1742082633472,-500.0,8.219e-05,2]
[356216823,1742082633482,-172.84,8.219e-05,2]
[356216824,1742082633491,-1241.43,8.219e-05,2]
[356216825,1742082633501,-500.0,8.219e-05,2]
[356216826,1742082633511,-3295.16,8.219e-05,2]
[356216827,1742082633520,-500.0,8.219e-05,2]
[356216828,1742082633529,-500.0,8.219e-05,2]
[356216829,1742082633539,-500.0,8.219e-05,2]
[356216830,1742082633548,-500.0,8.219e-05,2]
[356216831,1742082633558,-500.0,8.219e-05,2]
[356216832,1742082633567,-40558.35,8.219e-05,2]
[356216833,1742082633577,-500.0,8.219e-05,2]
[356216834,1742082633587,-500.0,8.219e-05,2]
[356216835,1742082633597,-500.0,8.219e-05,2]
[356216836,1742082633606,-500.0,8.219e-05,2]
[356216837,1742082633615,-500.0,8.219e-05,2]
[356216838,1742082633625,-903.21,8.219e-05,2]
[356216839,1742082633635,-214.03251902,8.219e-05,2]
[356216840,1742082633645,-1507.2,8.219e-05,2]
[356216841,1742082633654,-500.0,8.219e-05,2]
[356216842,1742082633664,-1587.66,8.219e-05,2]
[356216843,1742082633674,-500.0,8.219e-05,2]
[356216844,1742082633684,-353.82,8.219e-05,2]
[356216845,1742082633693,-500.0,8.219e-05,2]
[356216846,1742082633703,-549.29,8.219e-05,2]
[356216847,1742082633712,-500.0,8.219e-05,2]
[356216848,1742082633721,-500.0,8.219e-05,2]
[356216849,1742082633732,-500.0,8.219e-05,2]
[356216850,1742082633741,-500.0,8.219e-05,2]
[356216851,1742082633751,-500.0,8.219e-05,2]
[356216852,1742082633761,-500.0,8.219e-05,2]
[356216853,1742082633770,-691.04,8.219e-05,2]
[356216854,1742082633780,-3318.23,8.219e-05,2]
[356216855,1742082633790,-500.0,8.219e-05,2]
[356216856,1742082633799,-1990.33,8.219e-05,2]
[356216857,1742082633809,-500.0,8.219e-05,2]
[356216858,1742082633819,-500.0,8.219e-05,2]
[356216859,1742082633829,-654.09,8.219e-05,2]
[356216860,1742082633839,-667.32,8.219e-05,2]
[356216861,1742082633849,-1526.28,8.219e-05,2]
[356216862,1742082633859,-500.0,8.219e-05,2]
[356216863,1742082633870,-500.0,8.219e-05,2]
[356216864,1742082633880,-3561.74,8.219e-05,2]
[356216865,1742082633890,-500.0,8.219e-05,2]
[356216866,1742082633900,-840.08,8.219e-05,2]
[356216867,1742082633910,-500.0,8.493e-05,2]
[356216868,1742082633920,-500.0,8.493e-05,2]
[356216869,1742082633940,-500.0,8.493e-05,2]
[356216870,1742082633951,-500.0,8.493e-05,2]
[356216871,1742082633961,-500.0,8.493e-05,2]
[356216872,1742082633971,-500.0,8.493e-05,2]
[356216873,1742082633982,-500.0,8.493e-05,2]
[356216874,1742082633992,-500.0,8.493e-05,2]